Cogmind - Beta 11 X11 @@@ ROGUE MODE // 2022.03.15 @ 03:35:58 Player: Shin Result: Destroyed by G-47 Trooper with Particle Gun Performance ------------- Evolutions (2) 1000 Regions Visited (4) 800 Robots Destroyed (19) 95 Value Destroyed (366) 366 Prototype IDs (4) 80 Alien Tech Used (0) 0 Bonus (0) 0 TOTAL SCORE: 2341 Bonus ------- None Cogmind --------- Core Integrity 0/550 Matter 189/300 Energy 38/100 System Corruption 0% Temperature Cool (36) Movement Core (50) Location -8/Materials Parts ------- > --- POWER (1) -------- (None) > --- PROPULSION (4) --- (None) > --- UTILITY (4) ------ (None) > --- WEAPON (2) ------- (None) > --- INVENTORY (5) ---- Light Treads Light Treads ECM Suite Plasma Cutter Hammer Peak State ------------ > --- POWER ------------ (None) > --- PROPULSION ------- Aluminum Leg > --- UTILITY ---------- Large Storage Unit Improved Terrain Scanner Improved Terrain Scan Processor System Shield > --- WEAPON ----------- Light Assault Rifle Plasma Flamer > --- INVENTORY -------- Light Treads Light Treads Transport Network Coupler ECM Suite Plasma Cutter Hammer [Rating: 17] Favorites ----------- Power Ion Engine Engine Ion Engine Propulsion Wheel Leg Aluminum Leg Wheel Wheel Utility Large Storage Unit Device Sensor Array Storage Large Storage Unit Processor Improved Terrain Scan Processor Hackware System Shield Protection Light Armor Plating Weapon Light Assault Rifle Energy Cannon Particle Cannon Ballistic Gun Light Assault Rifle Special Weapon Plasma Cutter Build | -11 -10 -9 -9 -8 ------- Run | Scr Mat Mat Min Mat Slots Evolved 4 | . . 2 . 2 Power . | . . . . . Propulsion 2 | . . . . 2 Utility 2 | . . 2 . . Weapon . | . . . . . Parts Attached 31 | 2 1 10 4 14 Power 3 | . . 2 . 1 Engine 3 | . . 2 . 1 Core . | . . . . . Reactor . | . . . . . Propulsion 7 | 2 . 2 . 3 Treads . | . . . . . Leg 2 | . . . . 2 Wheel 5 | 2 . 2 . 1 Hover . | . . . . . Flight . | . . . . . Utility 12 | . 1 6 . 5 Device 7 | . 1 3 . 3 Storage 1 | . . 1 . . Processor 1 | . . . . 1 Hackware 1 | . . . . 1 Protection 2 | . . 2 . . Artifact . | . . . . . Weapon 9 | . . . 4 5 Energy Gun . | . . . . . Energy Cannon 1 | . . . . 1 Ballistic Gun 5 | . . . 2 3 Ballistic Cannon . | . . . . . Launcher . | . . . . . Special Weapon 3 | . . . 2 1 Impact Weapon . | . . . . . Slashing Weapon . | . . . . . Piercing Weapon . | . . . . . Special Melee Weapon . | . . . . . Unidentified Prototypes . | . . . . . Parts Lost 22 | . . 4 5 13 Power 1 | . . . . 1 Propulsion 7 | . . 2 1 4 Utility 7 | . . 2 3 2 Weapon 7 | . . . 1 6 Highest Loss Streak 12 | . . 2 5 12 To Critical Strikes . | . . . . . Average Slot Usage (%) 91 | . 95 95 95 72 Engine 9 | . 14 10 11 7 Wheel 18 | . 28 19 20 13 Device 19 | . 10 21 19 16 Storage 10 | . 14 11 11 9 Processor 1 | . . . . 6 Protection 7 | . . 10 9 . Ballistic Gun 20 | . 28 22 20 15 Naked Turns . | . . . . . Heaviest Build 34 | 10 11 33 34 31 Greatest Support 20 | 20 20 20 20 20 Greatest Overweight (x) 7 | . . 3 3 7 Average Overweight (x) 1 | . . 1 1 1 Largest Inventory Capacity 15 | 8 8 15 15 15 Average Capacity 14 | 8 8 14 15 15 Most Carried 15 | 7 8 15 15 13 Average Carried 11 | 6 7 11 14 10 Final Capacity 15 | 8 8 15 15 5 Final Carried 15 | 7 8 15 14 5 Class Distribution -------------------- 67% | Mutant 32% | Scavenger-Mutant Dominant Class ---------------- Mutant | -10/Materials Mutant | -9/Materials Scavenger-Mutant | -9/Mines Scavenger-Mutant | -8/Materials Resources | -11 -10 -9 -9 -8 ----------- Run | Scr Mat Mat Min Mat Matter Collected 530 | 194 . 241 67 28 Remotely . | . . . . . Salvage Created 529 | 24 . 394 35 76 Parts 38 | 4 . 25 5 4 Haulers Intercepted 1 | . . 1 . . Recyclers Shooed . | . . . . . Parts Field Recycled . | . . . . . Retrieved Matter . | . . . . . Parts Self-Destructed . | . . . . . Prevented . | . . . . . Kills | -11 -10 -9 -9 -8 ------- Run | Scr Mat Mat Min Mat Combat Hostiles Destroyed 16 | . . 10 3 3 Guns 16 | . . 10 3 3 Classes Destroyed 5 | 1 . 4 . . Tunneler 2 | 1 . 1 . . Hauler 1 | . . 1 . . Swarmer 10 | . . 5 3 2 Grunt 3 | . . 2 . 1 Sentry 3 | . . 3 . . Best Kill Streak 3 | 1 . 3 3 2 Combat Bots Only 3 | . . 3 3 2 Max Kills in Single Turn 2 | 1 . 1 2 1 Gunslinging 1 | . . . 1 . Exploded . | . . . . . Melee . | . . . . . Uniques/NPCs Destroyed . | . . . . . Combat | -11 -10 -9 -9 -8 -------- Run | Scr Mat Mat Min Mat Damage Taken 2573 | . . 536 524 1513 Core 744 | . . 94 97 553 Absorbed by Shields . | . . . . . Regen/Repaired (Parts) 23 | . . 23 . . Core Remaining (%) 84 | 100 100 . 52 . Volleys Fired 93 | 4 . 50 13 26 Largest 2 | 2 . 2 2 2 Hottest 120 | 40 . 40 40 120 Shots Fired 171 | 8 . 100 23 40 Gun 165 | 8 . 100 20 37 Cannon 2 | . . . . 2 Launcher . | . . . . . Special 4 | . . . 3 1 Kinetic 165 | 8 . 100 20 37 Thermal 6 | . . . 3 3 Explosive . | . . . . . Electromagnetic . | . . . . . Robot Hit Streak 13 | 3 . 13 2 5 Robot Miss Streak 5 | 1 . 3 5 4 Penetration Max . | . . . . . Secondary Targets 1 | . . . 1 . Max Gunslinging Chain 1 | . . . 1 . Shots Hit Robots 104 | 5 . 71 7 21 Core Hits 42 | 3 . 30 4 5 Critical Kills 1 | . . 1 . . Critical Parts Destroyed 1 | . . 1 . . Critical Strikes 3 | . . 2 . 1 Burn 1 | . . . . 1 Destroy 2 | . . 2 . . Melee Attacks . | . . . . . Impact . | . . . . . Slashing . | . . . . . Piercing . | . . . . . Sneak Attacks . | . . . . . Combat Hostiles . | . . . . . Follow-up Attacks . | . . . . . Damage Inflicted 947 | 41 . 584 80 242 Guns 872 | 41 . 562 80 189 Cannons 41 | . . . . 41 Explosions . | . . . . . Melee . | . . . . . Ramming 22 | . . 22 . . Kinetic 872 | 41 . 562 80 189 Thermal 53 | . . . . 53 Explosive . | . . . . . Electromagnetic . | . . . . . Impact . | . . . . . Slashing . | . . . . . Piercing . | . . . . . Highest Corruption 4 | . . 4 4 . Average Corruption 4 | . . 4 4 . Corruption Purged . | . . . . . Corruption Blocked . | . . . . . Effects 6 | . . 4 2 . Message Errors 1 | . . . 1 . Matter Fused 2 | . . 1 1 . Heat Flow Errors 1 | . . 1 . . Energy Discharges 2 | . . 2 . . Overload Shots . | . . . . . Overflow Damage . | . . . . . Projectiles . | . . . . . Explosions . | . . . . . Melee . | . . . . . Knockbacks 1 | . . 1 . . Impact 1 | . . 1 . . Kinetic . | . . . . . Secondary . | . . . . . Self-Inflicted Damage 10 | . . 10 . . Shots . | . . . . . Rammed 2 | . . 2 . . Targets Rammed 2 | . . 2 . . Kicked . | . . . . . Crushed . | . . . . . Highest Temperature 214 | . . 214 . 123 Average Temperature 52 | . . 42 . 58 Received Heat Transfer 837 | . . 102 60 675 Siege Activations . | . . . . . Robots Corrupted . | . . . . . Combat Hostiles . | . . . . . Parts Fried . | . . . . . Impact Corruptions . | . . . . . Robots Melted . | . . . . . Combat Hostiles . | . . . . . Parts Melted . | . . . . . Heat Transferred 314 | . . . . 314 Parts Sabotaged . | . . . . . Parts Stolen . | . . . . . Parts Stripped . | . . . . . Power Chain Reactions . | . . . . . Missiles Intercepted . | . . . . . Alert | -11 -10 -9 -9 -8 ------- Run | Scr Mat Mat Min Mat Peak Influence 203 | 5 18 203 148 107 Initial 78 | . 3 7 78 37 Average 66 | 3 6 66 111 59 Maximum Alert Level 1 | . . 1 . . Low Security (%) 97 | 100 100 95 100 100 Level 1 2 | . . 4 . . Level 2 . | . . . . . Level 3 . | . . . . . Level 4 . | . . . . . Level 5 . | . . . . . High Security . | . . . . . Max Security . | . . . . . Squads Dispatched 2 | . . 1 . 1 Investigation 1 | . . 1 . . Extermination . | . . . . . Reinforcement 1 | . . . . 1 Assault . | . . . . . Garrison . | . . . . . Intercept . | . . . . . Searches Triggered . | . . . . . Construction Impeded . | . . . . . Haulers Reinforced . | . . . . . Active Scanning Responses . | . . . . . Cargo Convoy Interrupts . | . . . . . Stealth | -11 -10 -9 -9 -8 --------- Run | Scr Mat Mat Min Mat Distress Signals 2 | . . 1 . 1 Communications Jammed . | . . . . . Distress Signals . | . . . . . Times Spotted 55 | . 2 18 26 9 Peak Tracking Total 17 | . 2 4 17 6 Tactical Retreats . | . . . . . Traps | -11 -10 -9 -9 -8 ------- Run | Scr Mat Mat Min Mat Traps Triggered . | . . . . . Indirectly . | . . . . . Trap Hack Attempts . | . . . . . Triggered . | . . . . . Disarmed . | . . . . . Reprogrammed . | . . . . . Reused . | . . . . . Traps Extracted . | . . . . . Installed . | . . . . . Triggered . | . . . . . Machines | -11 -10 -9 -9 -8 ---------- Run | Scr Mat Mat Min Mat Machines Disabled . | . . . . . Max in Single Turn . | . . . . . Machines Sabotaged . | . . . . . Garrisons Compromised . | . . . . . Overloaded Fab Kills . | . . . . . Hacking | -11 -10 -9 -9 -8 --------- Run | Scr Mat Mat Min Mat Machines Accessed 8 | . 1 7 . . Terminals 5 | . 1 4 . . Fabricators . | . . . . . Repair Stations 1 | . . 1 . . Recycling Units . | . . . . . Scanalyzers 2 | . . 2 . . Garrison Access . | . . . . . Total Hacks 27 | . 2 25 . . Successful 19 | . . 19 . . Failed 8 | . 2 6 . . Catastrophic 1 | . . 1 . . Database Lockouts . | . . . . . Manual 4 | . . 4 . . Terminals 14 | . 2 12 . . Fabricators . | . . . . . Repair Stations 2 | . . 2 . . Recycling Units . | . . . . . Scanalyzers 11 | . . 11 . . Garrison Access . | . . . . . Terminal Hacks 7 | . . 7 . . Prototype ID Bank 1 | . . 1 . . Alert Level 2 | . . 2 . . Unreport Threat 1 | . . 1 . . Locate Traps 1 | . . 1 . . Hauler Manifests 1 | . . 1 . . Zone Layout 1 | . . 1 . . Fabricator Hacks . | . . . . . Repair Station Hacks 2 | . . 2 . . Scan Component 1 | . . 1 . . Repair 1 | . . 1 . . Recycling Unit Hacks . | . . . . . Scanalyzer 10 | . . 10 . . Insert Component 5 | . . 5 . . Analyze 5 | . . 5 . . Garrison Access Hacks . | . . . . . Unauthorized Hacks . | . . . . . Terminals . | . . . . . Fabricators . | . . . . . Repair Stations . | . . . . . Recycling Units . | . . . . . Scanalyzers . | . . . . . Garrison Access . | . . . . . Data Cores Recovered . | . . . . . Used . | . . . . . Hacking Detections 6 | . 1 5 . . Full Trace Events 1 | . . 1 . . Feedback Events . | . . . . . Feedback Blocked . | . . . . . Robot Schematics Acquired . | . . . . . Robots Built . | . . . . . Authchips . | . . . . . Time . | . . . . . Total Robot Build Rating . | . . . . . Part Schematics Acquired 5 | . . 5 . . Parts Built . | . . . . . Authchips . | . . . . . Time . | . . . . . Total Part Build Rating . | . . . . . Parts Repaired 1 | . . 1 . . Time 26 | . . 26 . . Parts Recycled . | . . . . . Recycled Matter . | . . . . . Retrieved Matter . | . . . . . Retrieved Components . | . . . . . Parts Scanalyzed 5 | . . 5 . . Part Schematics Acquired 5 | . . 5 . . Parts Damaged 1 | . . 1 . . Bothacking | -11 -10 -9 -9 -8 ------------ Run | Scr Mat Mat Min Mat Used RIF Installer . | . . . . . Robots Hacked . | . . . . . Non-combat . | . . . . . Combat . | . . . . . Robot Hacks Applied . | . . . . . Relay Couplers Released . | . . . . . Fabnet Peak Effective % . | . . . . . Robots Rewired . | . . . . . Allies Hacked . | . . . . . Hacks Repelled . | . . . . . Allies | -11 -10 -9 -9 -8 -------- Run | Scr Mat Mat Min Mat Total Allies . | . . . . . Largest Group . | . . . . . Highest-Rated Group . | . . . . . Highest-Rated Ally . | . . . . . Total Orders . | . . . . . Ally Attacks . | . . . . . Total Damage . | . . . . . Kills . | . . . . . Allies Corrupted . | . . . . . Allies Melted . | . . . . . Intel | -11 -10 -9 -9 -8 ------- Run | Scr Mat Mat Min Mat Robot Analysis Total . | . . . . . Derelict Logs Recovered 2 | . . . 2 . Drone Launches . | . . . . . Drone Recoveries . | . . . . . Exploration | -11 -10 -9 -9 -8 ------------- Run | Scr Mat Mat Min Mat Turns Passed 1198 | 37 70 693 187 211 Spaces Moved 860 | 26 82 491 131 130 Core 2 | . . . . 2 Treads . | . . . . . Legs 7 | 6 . . . 1 Wheels 851 | 20 82 491 131 127 Hover . | . . . . . Flight . | . . . . . Fastest Speed 50 | 80 80 80 95 50 Average Speed 96 | 89 80 98 97 100 Slowest Speed 400 | 120 80 125 125 400 Overloaded Moves . | . . . . . Propulsion Burnouts . | . . . . . Robots Hopped . | . . . . . Cave-ins Triggered . | . . . . . Exploration Rate (%) 23 | 3 25 41 32 14 Regions Visited 4 Branch Regions 1 Pre-discovered Areas . | . . . . . Known Exits Taken . | . . . . . Unknown Exits Taken 4 | 1 1 1 1 . Scrap Searched 1 | . . . 1 . Spaces Dug . | . . . . . Terrain Destroyed . | . . . . . Melee . | . . . . . Projectile . | . . . . . AOE . | . . . . . Terrain Rammed . | . . . . . Walls Destroyed . | . . . . . Machines Disabled . | . . . . . Actions | -11 -10 -9 -9 -8 --------- Run | Scr Mat Mat Min Mat Total 1081 | 32 86 622 165 176 Wait 64 | . . 47 16 1 Move 856 | 25 81 490 130 130 Hop . | . . . . . Pick Up 26 | 1 3 17 1 4 Fast Attach 2 | . . 2 . . Attach 19 | . 1 6 1 11 Detach 1 | . . 1 . . Swap 10 | 2 . 2 3 3 Drop 8 | . 1 5 1 1 Fire 93 | 4 . 50 13 26 Melee . | . . . . . Ram 2 | . . 2 . . Kick . | . . . . . Crush . | . . . . . Escape Stasis . | . . . . . Rewire . | . . . . . Trap . | . . . . . Miscellaneous . | . . . . . Route ------- -11/Scrapyard -10/Materials -9/Materials -9/Mines -8/Materials History --------- Turn | Location | Event 7 | -11/Scrapyard | Discovered new exit (range 2) 38 | -11/Scrapyard | Entered Materials 95 | -10/Materials | Discovered new exit (range 16) 108 | -10/Materials | Entered another Materials area 108 | -9/Materials | Evolved 2 slots: Utility x2 309 | -9/Materials | Build established: Mutant 416 | -9/Materials | Repaired Lgt. Ion Engine 698 | -9/Materials | Discovered new exit (range 15) 801 | -9/Materials | Entered Mines 934 | -9/Mines | A weapon hastily lodged in a ceiling crevice suddenly fell to the ground 950 | -9/Mines | Discovered new exit (range 11) 958 | -9/Mines | Assembled infested the area 960 | -9/Mines | Learned Materials security intel 988 | -9/Mines | Entered Materials 988 | -8/Materials | Evolved 2 slots: Propulsion x2 1002 | -8/Materials | Lost 5 parts (1n3u1w) 1178 | -8/Materials | Core integrity fell below 50% 1190 | -8/Materials | Core integrity fell below 20% 1199 | -8/Materials | Released all parts (3) 1199 | -8/Materials | Destroyed by G-47 Trooper with Particle Gun Last Messages --------------- 01168_ Critical hit (Burn: +37). 01168_ Autogun destroyed. 01170_ Critical hit (Burn: +37). 01171_ Lgt. Assault Rifle destroyed. 01173_ U-05 Engineer builds a Door. 01173_ Critical hit (Burn: +37). 01176_ Particle Cannon destroyed. 01178_ Critical hit (Burn: +37). 01182_ Aluminum Leg destroyed. 01183_ Y-45 Defender destroyed. 01186_ G-47 Trooper destroyed. 01190_ Aluminum Leg destroyed. 01192_ Y-45 Defender suffers critical hit (Burn). 01192_ Lgt. Assault Rifle destroyed. 01193_ Imp. Terrain Scanner destroyed. 01195_ Plasma Flamer destroyed. 01199_ Critical hit (Burn: +37). 01199_ Released Imp. Terrain Scan Processor. 01199_ Released Lrg. Storage Unit. 01199_ Released System Shield. Map ----- +----------------------------------------------------+ | ??????????##?####?###?## ##?#???####??????? | | ??????#?#???????#??##??# ###?????##???? ??? | | ?????????????##???#????# #???#?#??#?? ????? | | ???????#??#####??#?##?## #?#??#?#?????????? | | ????????#???#?#??#????## #??####??##??????? | | ????????#???###???????## #??#???? ??? ????? | | ?????????#?############# ######?? #?# ????? | | ???#????????# [ ##### # # ????? | | ????#??#??###""" + ##????? | | ????#???##??#""" ##### # #?????? | | ????#?????###""" ##??# #?########?????? | | ??#???#???### ###?# ###????#???????? | | ???????##?### #??## ###??##?#??????? | | ???##??#??######+####### ###?#??????#???? | | ???#######??# ##?#???#???????? | | ???####?#???# * ##??#??????????? | | ????#?#??#### #??##??????????? | | ???##??#??#?##### *Y#############?????????? | | ??#?##?#??##??#?#Y%=## ##??????????? | | ??#?????????#???# !=# ##??????????? | | ??##???#?####?#?# + #???????????? | | ??#?#??#?####??## # #?#?????????? | | ?##?#####??#?##?# ###########???????????? | | ???#????#???##??#! ###?#####?##??????????? | | ??????#??? ??#! ####?##???????????????? | | ???##??#????" ?# @ #??#?#?# ? ?????????? | | ???#???#?#"?" ??# #???##?? ????????????? | | ??##?##?#?""??? + % #??###???"?? ?????????? | | ???##?####?? ? # g ##??##??"T????????????? | | ????###??#? ?# #?###?#???????????????? | | ?????##???#???#?# #?#??#?? ? ???????????? | | ????##????#????# t#?##?#???????????????? | | ??????####??##?# ?????? ??????????????? | | ????????##?####? ??????????????????? | | ????????#?#??#?# ??? ??????????????? | | ????????#?##???# ##???#???????????????? | | ????????????##?###+###? ??????????????????? | | ???????????? ? ? ???#????????????????????? | | ??????????????????????????????????????????? | | ??????????????????????????????????????????? | | ??????????????????????????????????????????? | | ??????????????????????????????????????????? | | ??????????????????????????????????????????? | | ??????????????????????????????????????????? | | ??????????????????????????????????????????? | | ??????????????????????????????????????????? | | ??????????????????????????????????????????? | | ??????????????????????????????????????????? | | ??????????????????????????????????????????? | | ??????????????????????????????????????????? | +----------------------------------------------------+ Best States ------------- Heat Dissipation 50 Energy Generation 10 Energy Capacity 250 Matter Stores 300 Matter Capacity 300 Sight Range 16 Robot Scan Range 14 Terrain Scan Range 16 Terrain Scan Density 110 Armor Coverage 150 Evasion (%) 45 Defensive Hacking 10 Item Schematics ----------------- ECM Suite | -9/Materials | Scanalyzed Assault Rifle | -9/Materials | Scanalyzed Adv. Beam Cannon | -9/Materials | Scanalyzed Cld. Ion Engine | -9/Materials | Scanalyzed Imp. Terrain Scanner | -9/Materials | Scanalyzed Robot Schematics ------------------ None Fabricated ------------ Nothing Alien Tech Used ----------------- None Achievements -------------- None Challenges ------------ None Game ------ Seed TrackerCorruptionAnalyzer Manual? 0 Play Time 00:36:03 Cumulative 37.9 hours Start 2022.03.15 @ 02:59:41 End 2022.03.15 @ 03:35:58 Sessions 1 Manual Loads 0 Difficulty Rogue Special Mode None Game No. 29 Rogue 29 Adventurer 0 Explorer 0 Win Type - Total 0 Types 0/0/0/0/0/0/0/0/0 Lore% 30 Gallery% 37 Achievement% 26 Wizard Run 0 Options --------- ASCII 0 Keyboard 0 Movement Mouse Keybinds 1 Fullscreen 1 Font 18/TerminusBold Map View 76x50 Tactical HUD 1 Map Filters NONE Filters NONE Steam 1 RUN: 3f338a1f-2df1-4013-912a-7c1f60235a05